[Event "Titled Tuesday Blitz October 31 Early 2023"]
[White "Kleiman, Jake"]
[Black "Klukin, Kirill"]
[WhiteFideId "2020041"]
[BlackFideId "24199273"]
[WhiteElo "2679"]
[BlackElo "2844"]
[Result "1-0"]
[Round "8"]
[TimeControl "180+1"]
[Date "2023.10.31"]
[WhiteClock "0:00:11"]
[BlackClock "0:00:00"]
[Board "34"]

1. e4 {[%clk 0:02:58]}  c5 {[%clk 0:02:59]} 2. c3 {[%clk 0:02:57]}  g6 {[%clk 0:02:59]} 3. d4 {[%clk 0:02:57]}  cxd4 {[%clk 0:03:00]} 4. cxd4 {[%clk 0:02:58]}  d5 {[%clk 0:03:00]} 5. e5 {[%clk 0:02:58]}  Bg7 {[%clk 0:03:00]} 6. Nc3 {[%clk 0:02:59]}  a6 {[%clk 0:03:00]} 7. h3 {[%clk 0:02:58]}  Nc6 {[%clk 0:03:01]} 8. Be3 {[%clk 0:02:49]}  f6 {[%clk 0:03:01]} 9. f4 {[%clk 0:02:49]}  e6 {[%clk 0:02:48]} 10. Nf3 {[%clk 0:02:48]}  Nge7 {[%clk 0:02:49]} 11. Bd3 {[%clk 0:02:34]}  Bd7 {[%clk 0:02:46]} 12. O-O {[%clk 0:02:33]}  Kf8 {[%clk 0:02:46]} 13. Rc1 {[%clk 0:02:29]}  Rc8 {[%clk 0:02:42]} 14. a3 {[%clk 0:02:13]}  Nf5 {[%clk 0:02:37]} 15. Bf2 {[%clk 0:02:10]}  h5 {[%clk 0:02:35]} 16. Na4 {[%clk 0:01:59]}  Rc7 {[%clk 0:02:23]} 17. Nc5 {[%clk 0:01:56]}  Bc8 {[%clk 0:02:23]} 18. Qe2 {[%clk 0:01:44]}  Qe7 {[%clk 0:02:00]} 19. b4 {[%clk 0:01:43]}  Bh6 {[%clk 0:01:46]} 20. exf6 {[%clk 0:01:32]}  Qxf6 {[%clk 0:01:44]} 21. Ne5 {[%clk 0:00:58]}  Bxf4 {[%clk 0:01:21]} 22. Nxa6 {[%clk 0:00:44]}  Ncxd4 {[%clk 0:01:07]} 23. Bxd4 {[%clk 0:00:38]}  Nxd4 {[%clk 0:01:04]} 24. Nxg6+ {[%clk 0:00:19]}  Kg8 {[%clk 0:00:55]} 25. Qf2 {[%clk 0:00:19]}  Rxc1 {[%clk 0:00:20]} 26. Rxc1 {[%clk 0:00:19]}  Bh2+ {[%clk 0:00:18]} 27. Kf1 {[%clk 0:00:20]}  Nf5 {[%clk 0:00:07]} 28. Rxc8+ {[%clk 0:00:17]}  Kg7 {[%clk 0:00:08]} 29. Bxf5 {[%clk 0:00:15]}  Rxc8 {[%clk 0:00:05]} 30. Nc5 {[%clk 0:00:14]}  exf5 {[%clk 0:00:04]} 31. Nf4 {[%clk 0:00:12]}  Bxf4 {[%clk 0:00:04]} 32. Qxf4 {[%clk 0:00:12]}  b6 {[%clk 0:00:04]} 33. Nd3 {[%clk 0:00:12]}  Rc4 {[%clk 0:00:03]} 34. Qe3 {[%clk 0:00:10]}  Qa1+ {[%clk 0:00:02]} 35. Kf2 {[%clk 0:00:10]}  Rc2+ {[%clk 0:00:02]} 36. Kg3 {[%clk 0:00:10]}  Qf6 {[%clk 0:00:03]} 37. Nf4 {[%clk 0:00:10]}  Qg5+ {[%clk 0:00:01]} 38. Kh2 {[%clk 0:00:10]}  h4 {[%clk 0:00:01]} 39. Ne6+ {[%clk 0:00:11]}  Kf6 {[%clk 0:00:02]} 40. Nxg5 {[%clk 0:00:10]}  f4 {[%clk 0:00:00]} 41. Qxf4+ {[%clk 0:00:11]} 1-0


[Site "https://www.chess.com"]

[Event "Titled Tuesday Blitz October 31 Early 2023"]
[White "Hamitevici, Vladimir"]
[Black "JuniorJumper"]
[WhiteFideId "13902393"]
[WhiteElo "2745"]
[BlackElo "2615"]
[Result "1-0"]
[Round "8"]
[TimeControl "180+1"]
[Date "2023.10.31"]
[WhiteClock "0:00:16"]
[BlackClock "0:00:06"]
[Board "39"]

1. a3 {[%clk 0:03:00]}  e5 {[%clk 0:02:44]} 2. d3 {[%clk 0:02:57]}  d5 {[%clk 0:02:42]} 3. g3 {[%clk 0:02:56]}  Nf6 {[%clk 0:02:42]} 4. Bg2 {[%clk 0:02:55]}  c6 {[%clk 0:02:43]} 5. Nd2 {[%clk 0:02:51]}  Be6 {[%clk 0:02:40]} 6. Ngf3 {[%clk 0:02:48]}  Bd6 {[%clk 0:02:40]} 7. O-O {[%clk 0:02:44]}  O-O {[%clk 0:02:40]} 8. e4 {[%clk 0:02:43]}  Nbd7 {[%clk 0:02:35]} 9. Re1 {[%clk 0:02:42]}  h6 {[%clk 0:02:35]} 10. Nh4 {[%clk 0:02:36]}  dxe4 {[%clk 0:02:27]} 11. dxe4 {[%clk 0:02:35]}  Nc5 {[%clk 0:02:20]} 12. h3 {[%clk 0:02:30]}  Qe7 {[%clk 0:02:11]} 13. Qf3 {[%clk 0:02:29]}  Nh7 {[%clk 0:02:09]} 14. Nf5 {[%clk 0:02:06]}  Bxf5 {[%clk 0:02:07]} 15. exf5 {[%clk 0:02:07]}  Nf6 {[%clk 0:01:47]} 16. b4 {[%clk 0:01:59]}  e4 {[%clk 0:01:31]} 17. Qe3 {[%clk 0:01:43]}  Na4 {[%clk 0:01:17]} 18. Qb3 {[%clk 0:01:33]}  Qe5 {[%clk 0:01:06]} 19. Rb1 {[%clk 0:01:24]}  b5 {[%clk 0:00:57]} 20. Nxe4 {[%clk 0:01:22]}  Nxe4 {[%clk 0:00:57]} 21. Rxe4 {[%clk 0:01:20]}  Qxf5 {[%clk 0:00:55]} 22. Bf4 {[%clk 0:01:09]}  Rad8 {[%clk 0:00:48]} 23. Rbe1 {[%clk 0:01:04]}  Nb6 {[%clk 0:00:43]} 24. Be3 {[%clk 0:00:28]}  Nc4 {[%clk 0:00:38]} 25. Bc1 {[%clk 0:00:21]}  Bc7 {[%clk 0:00:34]} 26. Qf3 {[%clk 0:00:18]}  Qxf3 {[%clk 0:00:22]} 27. Bxf3 {[%clk 0:00:19]}  Bb6 {[%clk 0:00:23]} 28. Re7 {[%clk 0:00:17]}  c5 {[%clk 0:00:15]} 29. Bc6 {[%clk 0:00:18]}  cxb4 {[%clk 0:00:14]} 30. axb4 {[%clk 0:00:18]}  a6 {[%clk 0:00:08]} 31. Bb7 {[%clk 0:00:17]}  a5 {[%clk 0:00:08]} 32. bxa5 {[%clk 0:00:10]}  Bxa5 {[%clk 0:00:09]} 33. Rf1 {[%clk 0:00:07]}  Rfe8 {[%clk 0:00:09]} 34. Rxe8+ {[%clk 0:00:06]}  Rxe8 {[%clk 0:00:10]} 35. Bc6 {[%clk 0:00:07]}  Re2 {[%clk 0:00:10]} 36. Bxb5 {[%clk 0:00:06]}  Rxc2 {[%clk 0:00:11]} 37. Bf4 {[%clk 0:00:07]}  Nd2 {[%clk 0:00:08]} 38. Rd1 {[%clk 0:00:06]}  Nf3+ {[%clk 0:00:06]} 39. Kg2 {[%clk 0:00:05]}  Rc3 {[%clk 0:00:05]} 40. Be2 {[%clk 0:00:05]}  Ng5 {[%clk 0:00:05]} 41. Ra1 {[%clk 0:00:04]}  Bc7 {[%clk 0:00:04]} 42. Ra8+ {[%clk 0:00:05]}  Kh7 {[%clk 0:00:04]} 43. Be3 {[%clk 0:00:05]}  Be5 {[%clk 0:00:04]} 44. Bd2 {[%clk 0:00:05]}  Rc2 {[%clk 0:00:04]} 45. Bd3+ {[%clk 0:00:06]}  g6 {[%clk 0:00:04]} 46. Bxc2 {[%clk 0:00:06]}  Bf6 {[%clk 0:00:05]} 47. Bxg5 {[%clk 0:00:06]}  hxg5 {[%clk 0:00:05]} 48. f4 {[%clk 0:00:07]}  g4 {[%clk 0:00:05]} 49. hxg4 {[%clk 0:00:07]}  Kg7 {[%clk 0:00:06]} 50. g5 {[%clk 0:00:08]}  Bd4 {[%clk 0:00:06]} 51. Kf3 {[%clk 0:00:09]}  Bg1 {[%clk 0:00:06]} 52. g4 {[%clk 0:00:09]}  Kh7 {[%clk 0:00:06]} 53. f5 {[%clk 0:00:10]}  Kg7 {[%clk 0:00:07]} 54. f6+ {[%clk 0:00:10]}  Kh7 {[%clk 0:00:08]} 55. Rf8 {[%clk 0:00:10]}  Bc5 {[%clk 0:00:05]} 56. Rxf7+ {[%clk 0:00:11]}  Kh8 {[%clk 0:00:06]} 57. Bxg6 {[%clk 0:00:12]}  Be7 {[%clk 0:00:06]} 58. Rh7+ {[%clk 0:00:13]}  Kg8 {[%clk 0:00:07]} 59. Rxe7 {[%clk 0:00:13]}  Kf8 {[%clk 0:00:06]} 60. Kf4 {[%clk 0:00:14]}  Kg8 {[%clk 0:00:06]} 61. Ke5 {[%clk 0:00:14]}  Kh8 {[%clk 0:00:06]} 62. Ke6 {[%clk 0:00:15]}  Kg8 {[%clk 0:00:06]} 63. Re8# {[%clk 0:00:16]} 1-0


[Site "https://www.chess.com"]

[Event "Titled Tuesday Blitz October 31 Early 2023"]
[White "BardArtem"]
[Black "Yaksin, Oleg"]
[BlackFideId "24105880"]
[WhiteElo "2706"]
[BlackElo "2542"]
[Result "1-0"]
[Round "8"]
[TimeControl "180+1"]
[Date "2023.10.31"]
[WhiteClock "0:00:13"]
[BlackClock "0:00:00"]
[Board "42"]

1. e4 {[%clk 0:03:00]}  c5 {[%clk 0:02:56]} 2. c3 {[%clk 0:03:00]}  Nf6 {[%clk 0:02:55]} 3. e5 {[%clk 0:03:00]}  Nd5 {[%clk 0:02:55]} 4. Nf3 {[%clk 0:03:00]}  Nc6 {[%clk 0:02:53]} 5. Bc4 {[%clk 0:03:00]}  Nb6 {[%clk 0:02:49]} 6. Bb3 {[%clk 0:03:00]}  c4 {[%clk 0:02:48]} 7. Bc2 {[%clk 0:03:00]}  Qc7 {[%clk 0:02:49]} 8. O-O {[%clk 0:02:59]}  Nxe5 {[%clk 0:02:48]} 9. Nxe5 {[%clk 0:03:00]}  Qxe5 {[%clk 0:02:48]} 10. a4 {[%clk 0:03:01]}  g6 {[%clk 0:02:43]} 11. a5 {[%clk 0:03:00]}  Nd5 {[%clk 0:02:43]} 12. Re1 {[%clk 0:03:00]}  Qd6 {[%clk 0:02:34]} 13. Na3 {[%clk 0:02:55]}  Bg7 {[%clk 0:02:25]} 14. Nxc4 {[%clk 0:02:48]}  Qc5 {[%clk 0:02:24]} 15. Ne3 {[%clk 0:02:06]}  Nxe3 {[%clk 0:02:21]} 16. Rxe3 {[%clk 0:02:07]}  Bf6 {[%clk 0:01:53]} 17. d4 {[%clk 0:02:05]}  Qc7 {[%clk 0:01:52]} 18. h4 {[%clk 0:01:35]}  O-O {[%clk 0:01:46]} 19. h5 {[%clk 0:01:33]}  d5 {[%clk 0:01:41]} 20. Qf3 {[%clk 0:01:21]}  Qd6 {[%clk 0:01:29]} 21. Re1 {[%clk 0:01:19]}  Bd7 {[%clk 0:01:22]} 22. Bf4 {[%clk 0:01:14]}  Qa6 {[%clk 0:00:44]} 23. Qxd5 {[%clk 0:00:54]}  Bc6 {[%clk 0:00:44]} 24. Qc5 {[%clk 0:00:53]}  Rad8 {[%clk 0:00:41]} 25. Bb3 {[%clk 0:00:43]}  Qd3 {[%clk 0:00:41]} 26. a6 {[%clk 0:00:37]}  e6 {[%clk 0:00:16]} 27. Bc4 {[%clk 0:00:33]}  Qc2 {[%clk 0:00:12]} 28. Re2 {[%clk 0:00:32]}  Qf5 {[%clk 0:00:10]} 29. Qxf5 {[%clk 0:00:30]}  gxf5 {[%clk 0:00:11]} 30. axb7 {[%clk 0:00:30]}  Bxb7 {[%clk 0:00:12]} 31. Rxa7 {[%clk 0:00:30]}  Be4 {[%clk 0:00:12]} 32. f3 {[%clk 0:00:28]}  Bc6 {[%clk 0:00:11]} 33. Rc7 {[%clk 0:00:24]}  Bd5 {[%clk 0:00:07]} 34. Bxd5 {[%clk 0:00:22]}  Rxd5 {[%clk 0:00:08]} 35. Be5 {[%clk 0:00:16]}  Bg5 {[%clk 0:00:04]} 36. c4 {[%clk 0:00:16]}  Ra5 {[%clk 0:00:03]} 37. f4 {[%clk 0:00:16]}  Bh4 {[%clk 0:00:03]} 38. Kh2 {[%clk 0:00:15]}  Ra2 {[%clk 0:00:00]} 39. d5 {[%clk 0:00:13]} 1-0


[Site "https://www.chess.com"]

[Event "Titled Tuesday Blitz October 31 Early 2023"]
[White "Amilal Munkhdalai"]
[Black "MFatigue"]
[WhiteFideId "4903250"]
[WhiteElo "2684"]
[BlackElo "2506"]
[Result "1-0"]
[Round "8"]
[TimeControl "180+1"]
[Date "2023.10.31"]
[WhiteClock "0:01:01"]
[BlackClock "0:00:05"]
[Board "43"]

1. e4 {[%clk 0:03:00]}  e6 {[%clk 0:03:00]} 2. d4 {[%clk 0:03:01]}  d5 {[%clk 0:03:00]} 3. Nd2 {[%clk 0:03:01]}  Nf6 {[%clk 0:03:01]} 4. e5 {[%clk 0:03:01]}  Nfd7 {[%clk 0:03:01]} 5. f4 {[%clk 0:03:02]}  c5 {[%clk 0:03:02]} 6. c3 {[%clk 0:03:02]}  Nc6 {[%clk 0:03:02]} 7. Ndf3 {[%clk 0:03:03]}  cxd4 {[%clk 0:02:57]} 8. cxd4 {[%clk 0:03:03]}  Be7 {[%clk 0:02:58]} 9. Bd3 {[%clk 0:03:03]}  Qb6 {[%clk 0:02:54]} 10. Ne2 {[%clk 0:03:03]}  f6 {[%clk 0:02:45]} 11. O-O {[%clk 0:03:01]}  fxe5 {[%clk 0:02:39]} 12. fxe5 {[%clk 0:03:00]}  Ndxe5 {[%clk 0:02:37]} 13. Nxe5 {[%clk 0:02:56]}  Nxe5 {[%clk 0:02:37]} 14. Bb1 {[%clk 0:02:56]}  Bf6 {[%clk 0:02:20]} 15. Kh1 {[%clk 0:02:55]}  Nc6 {[%clk 0:02:12]} 16. Nc3 {[%clk 0:02:53]}  Qxd4 {[%clk 0:01:34]} 17. Qh5+ {[%clk 0:02:53]}  Kd8 {[%clk 0:01:11]} 18. Bg5 {[%clk 0:02:43]}  Qe5 {[%clk 0:01:00]} 19. Bxf6+ {[%clk 0:02:33]}  gxf6 {[%clk 0:00:59]} 20. Qf7 {[%clk 0:02:29]}  Bd7 {[%clk 0:00:57]} 21. Bc2 {[%clk 0:02:18]}  f5 {[%clk 0:00:39]} 22. Rae1 {[%clk 0:02:16]}  Qd4 {[%clk 0:00:39]} 23. Rd1 {[%clk 0:01:55]}  Qh4 {[%clk 0:00:29]} 24. Nxd5 {[%clk 0:01:47]}  exd5 {[%clk 0:00:27]} 25. Qxd5 {[%clk 0:01:41]}  Qe7 {[%clk 0:00:27]} 26. Rfe1 {[%clk 0:01:38]}  Qg7 {[%clk 0:00:24]} 27. Bxf5 {[%clk 0:01:37]}  Kc7 {[%clk 0:00:22]} 28. Qd6+ {[%clk 0:01:36]}  Kb6 {[%clk 0:00:23]} 29. Bxd7 {[%clk 0:01:33]}  Rad8 {[%clk 0:00:22]} 30. Re3 {[%clk 0:01:29]}  a6 {[%clk 0:00:22]} 31. Rc3 {[%clk 0:01:07]}  Rhe8 {[%clk 0:00:06]} 32. Rxc6+ {[%clk 0:01:06]}  Ka7 {[%clk 0:00:07]} 33. Rxa6+ {[%clk 0:01:00]}  bxa6 {[%clk 0:00:05]} 34. Qc7+ {[%clk 0:01:00]}  Ka8 {[%clk 0:00:05]} 35. Bc6# {[%clk 0:01:01]} 1-0


[Site "https://www.chess.com"]

[Event "Titled Tuesday Blitz October 31 Early 2023"]
[White "Ergali_Suleimen"]
[Black "Fier, Alexandr"]
[BlackFideId "2107139"]
[WhiteElo "2590"]
[BlackElo "2735"]
[Result "0-1"]
[Round "8"]
[TimeControl "180+1"]
[Date "2023.10.31"]
[WhiteClock "0:00:16"]
[BlackClock "0:02:25"]
[Board "47"]

1. e4 {[%clk 0:03:00]}  e5 {[%clk 0:02:59]} 2. Nf3 {[%clk 0:03:00]}  Nf6 {[%clk 0:03:00]} 3. Nxe5 {[%clk 0:02:54]}  d6 {[%clk 0:03:00]} 4. Nf3 {[%clk 0:02:54]}  Nxe4 {[%clk 0:03:01]} 5. Nc3 {[%clk 0:02:55]}  Nxc3 {[%clk 0:03:01]} 6. dxc3 {[%clk 0:02:56]}  Be7 {[%clk 0:03:01]} 7. Be3 {[%clk 0:02:57]}  O-O {[%clk 0:03:01]} 8. Qd2 {[%clk 0:02:57]}  Nd7 {[%clk 0:03:02]} 9. O-O-O {[%clk 0:02:56]}  Nf6 {[%clk 0:03:02]} 10. Bd3 {[%clk 0:02:55]}  c5 {[%clk 0:02:58]} 11. Kb1 {[%clk 0:02:53]}  b5 {[%clk 0:02:58]} 12. h3 {[%clk 0:02:41]}  Rb8 {[%clk 0:02:54]} 13. g4 {[%clk 0:02:39]}  Qa5 {[%clk 0:02:49]} 14. g5 {[%clk 0:02:34]}  Be6 {[%clk 0:02:48]} 15. a3 {[%clk 0:02:21]}  Nd7 {[%clk 0:02:47]} 16. c4 {[%clk 0:01:02]}  b4 {[%clk 0:02:44]} 17. Bf4 {[%clk 0:00:56]}  Qa4 {[%clk 0:02:40]} 18. Ka2 {[%clk 0:00:46]}  b3+ {[%clk 0:02:39]} 19. cxb3 {[%clk 0:00:47]}  Rxb3 {[%clk 0:02:38]} 20. Bxh7+ {[%clk 0:00:44]}  Kxh7 {[%clk 0:02:37]} 21. Qc2+ {[%clk 0:00:43]}  Kg8 {[%clk 0:02:37]} 22. Rc1 {[%clk 0:00:31]}  Rfb8 {[%clk 0:02:34]} 23. Nd2 {[%clk 0:00:30]}  Rxb2+ {[%clk 0:02:27]} 24. Qxb2 {[%clk 0:00:31]}  Rxb2+ {[%clk 0:02:27]} 25. Kxb2 {[%clk 0:00:32]}  d5 {[%clk 0:02:27]} 26. Rhe1 {[%clk 0:00:26]}  dxc4 {[%clk 0:02:25]} 27. Re3 {[%clk 0:00:19]}  c3+ {[%clk 0:02:24]} 28. Rexc3 {[%clk 0:00:16]}  Qxf4 {[%clk 0:02:25]} 0-1


[Site "https://www.chess.com"]

[Event "Titled Tuesday Blitz October 31 Early 2023"]
[White "Jaskolka, Tomasz"]
[Black "Karthik Rajaa"]
[WhiteFideId "1170791"]
[BlackFideId "25035215"]
[WhiteElo "2578"]
[BlackElo "2721"]
[Result "0-1"]
[Round "8"]
[TimeControl "180+1"]
[Date "2023.10.31"]
[WhiteClock "0:00:04"]
[BlackClock "0:00:07"]
[Board "49"]

1. e4 {[%clk 0:03:00]}  c6 {[%clk 0:03:00]} 2. d4 {[%clk 0:02:59]}  d5 {[%clk 0:02:59]} 3. e5 {[%clk 0:03:00]}  Bf5 {[%clk 0:02:58]} 4. Nd2 {[%clk 0:03:00]}  e6 {[%clk 0:02:58]} 5. Nb3 {[%clk 0:03:01]}  a5 {[%clk 0:02:58]} 6. a4 {[%clk 0:03:01]}  Nd7 {[%clk 0:02:58]} 7. Be2 {[%clk 0:02:58]}  h6 {[%clk 0:02:57]} 8. Nf3 {[%clk 0:02:56]}  Bh7 {[%clk 0:02:56]} 9. O-O {[%clk 0:02:57]}  Ne7 {[%clk 0:02:56]} 10. c3 {[%clk 0:02:53]}  Ng6 {[%clk 0:02:55]} 11. Ne1 {[%clk 0:02:48]}  c5 {[%clk 0:02:45]} 12. f4 {[%clk 0:02:46]}  c4 {[%clk 0:02:45]} 13. Nd2 {[%clk 0:02:45]}  Ne7 {[%clk 0:02:45]} 14. Ndf3 {[%clk 0:02:39]}  Qb6 {[%clk 0:02:30]} 15. Kh1 {[%clk 0:02:35]}  Be4 {[%clk 0:02:25]} 16. Nd2 {[%clk 0:02:30]}  Bg6 {[%clk 0:02:24]} 17. b3 {[%clk 0:02:30]}  cxb3 {[%clk 0:02:22]} 18. Qxb3 {[%clk 0:02:31]}  Qxb3 {[%clk 0:02:20]} 19. Nxb3 {[%clk 0:02:32]}  Nc6 {[%clk 0:02:20]} 20. Bd3 {[%clk 0:02:30]}  Bxd3 {[%clk 0:02:18]} 21. Nxd3 {[%clk 0:02:31]}  b6 {[%clk 0:02:19]} 22. f5 {[%clk 0:02:27]}  Nd8 {[%clk 0:02:15]} 23. Nf4 {[%clk 0:02:21]}  Rc8 {[%clk 0:02:15]} 24. Bd2 {[%clk 0:02:19]}  Be7 {[%clk 0:01:42]} 25. fxe6 {[%clk 0:02:19]}  fxe6 {[%clk 0:01:43]} 26. Ng6 {[%clk 0:02:18]}  Rg8 {[%clk 0:01:43]} 27. Rf3 {[%clk 0:02:15]}  Nf8 {[%clk 0:01:43]} 28. Nxe7 {[%clk 0:02:10]}  Kxe7 {[%clk 0:01:41]} 29. Raf1 {[%clk 0:02:10]}  Nd7 {[%clk 0:01:40]} 30. Bc1 {[%clk 0:02:08]}  Rc4 {[%clk 0:01:27]} 31. Rg3 {[%clk 0:01:33]}  Nf7 {[%clk 0:01:15]} 32. Rgf3 {[%clk 0:01:15]}  Ng5 {[%clk 0:00:58]} 33. Bxg5+ {[%clk 0:00:53]}  hxg5 {[%clk 0:00:58]} 34. Nd2 {[%clk 0:00:54]}  Rxa4 {[%clk 0:00:57]} 35. Rf7+ {[%clk 0:00:52]}  Ke8 {[%clk 0:00:54]} 36. c4 {[%clk 0:00:52]}  dxc4 {[%clk 0:00:47]} 37. Ne4 {[%clk 0:00:50]}  c3 {[%clk 0:00:37]} 38. Nd6+ {[%clk 0:00:33]}  Kd8 {[%clk 0:00:37]} 39. d5 {[%clk 0:00:34]}  Nc5 {[%clk 0:00:12]} 40. Ra7 {[%clk 0:00:28]}  exd5 {[%clk 0:00:05]} 41. h3 {[%clk 0:00:21]}  c2 {[%clk 0:00:05]} 42. Kh2 {[%clk 0:00:18]}  Rf4 {[%clk 0:00:04]} 43. Rc1 {[%clk 0:00:16]}  Rf2 {[%clk 0:00:05]} 44. Kg3 {[%clk 0:00:16]}  Re2 {[%clk 0:00:04]} 45. Rf1 {[%clk 0:00:06]}  Ne4+ {[%clk 0:00:04]} 46. Nxe4 {[%clk 0:00:05]}  dxe4 {[%clk 0:00:04]} 47. Rff7 {[%clk 0:00:05]}  c1=Q {[%clk 0:00:04]} 48. e6 {[%clk 0:00:02]}  Qf4+ {[%clk 0:00:03]} 49. Rxf4 {[%clk 0:00:02]}  gxf4+ {[%clk 0:00:04]} 50. Kxf4 {[%clk 0:00:03]}  Re8 {[%clk 0:00:05]} 51. Ke5 {[%clk 0:00:03]}  e3 {[%clk 0:00:05]} 52. Kd6 {[%clk 0:00:03]}  Rd2+ {[%clk 0:00:06]} 53. Ke5 {[%clk 0:00:04]}  e2 {[%clk 0:00:06]} 54. Ra8+ {[%clk 0:00:04]}  Ke7 {[%clk 0:00:07]} 55. Ra7+ {[%clk 0:00:04]}  Kf8 {[%clk 0:00:07]} 0-1


[Site "https://www.chess.com"]

[Event "Titled Tuesday Blitz October 31 Early 2023"]
[White "Herzog2012"]
[Black "Kosteniuk, Alexandra"]
[BlackFideId "4128125"]
[WhiteElo "2568"]
[BlackElo "2718"]
[Result "1-0"]
[Round "8"]
[TimeControl "180+1"]
[Date "2023.10.31"]
[WhiteClock "0:00:03"]
[BlackClock "0:00:10"]
[Board "50"]

1. e4 {[%clk 0:03:00]}  c5 {[%clk 0:02:57]} 2. Nf3 {[%clk 0:03:00]}  Nc6 {[%clk 0:02:57]} 3. d4 {[%clk 0:03:00]}  cxd4 {[%clk 0:02:57]} 4. Nxd4 {[%clk 0:03:00]}  Nf6 {[%clk 0:02:58]} 5. Nc3 {[%clk 0:03:01]}  d6 {[%clk 0:02:58]} 6. Bg5 {[%clk 0:02:58]}  e6 {[%clk 0:02:58]} 7. Qd2 {[%clk 0:02:59]}  a6 {[%clk 0:02:58]} 8. O-O-O {[%clk 0:02:59]}  h6 {[%clk 0:02:59]} 9. Be3 {[%clk 0:02:58]}  Bd7 {[%clk 0:02:46]} 10. f3 {[%clk 0:02:37]}  b5 {[%clk 0:02:45]} 11. Nxc6 {[%clk 0:02:29]}  Bxc6 {[%clk 0:02:45]} 12. Ne2 {[%clk 0:02:30]}  Be7 {[%clk 0:02:31]} 13. g4 {[%clk 0:02:26]}  Nd7 {[%clk 0:02:25]} 14. Bg2 {[%clk 0:02:13]}  Ne5 {[%clk 0:02:24]} 15. Nd4 {[%clk 0:02:05]}  Bb7 {[%clk 0:02:23]} 16. Qe2 {[%clk 0:01:56]}  Rc8 {[%clk 0:02:17]} 17. Kb1 {[%clk 0:01:53]}  Nc4 {[%clk 0:02:07]} 18. Bc1 {[%clk 0:01:53]}  Qb6 {[%clk 0:01:57]} 19. f4 {[%clk 0:01:50]}  Bf6 {[%clk 0:01:52]} 20. Qd3 {[%clk 0:01:25]}  g5 {[%clk 0:01:37]} 21. f5 {[%clk 0:01:02]}  Qxd4 {[%clk 0:01:28]} 22. Qxd4 {[%clk 0:01:03]}  Bxd4 {[%clk 0:01:29]} 23. Rxd4 {[%clk 0:01:04]}  Ke7 {[%clk 0:01:29]} 24. b3 {[%clk 0:01:02]}  Ne5 {[%clk 0:01:24]} 25. Ba3 {[%clk 0:01:00]}  Rhd8 {[%clk 0:01:24]} 26. h3 {[%clk 0:00:35]}  a5 {[%clk 0:01:24]} 27. f6+ {[%clk 0:00:30]}  Kxf6 {[%clk 0:01:23]} 28. Bxd6 {[%clk 0:00:30]}  Rxd6 {[%clk 0:01:14]} 29. Rxd6 {[%clk 0:00:29]}  Ke7 {[%clk 0:01:14]} 30. Rb6 {[%clk 0:00:29]}  Bc6 {[%clk 0:01:13]} 31. Rd1 {[%clk 0:00:26]}  Ng6 {[%clk 0:01:04]} 32. Ra6 {[%clk 0:00:24]}  a4 {[%clk 0:01:03]} 33. Ra7+ {[%clk 0:00:23]}  Kf8 {[%clk 0:01:02]} 34. Kb2 {[%clk 0:00:17]}  Nf4 {[%clk 0:01:02]} 35. Rd2 {[%clk 0:00:17]}  axb3 {[%clk 0:00:58]} 36. axb3 {[%clk 0:00:17]}  Nxg2 {[%clk 0:00:53]} 37. Rxg2 {[%clk 0:00:17]}  Bxe4 {[%clk 0:00:54]} 38. Rf2 {[%clk 0:00:17]}  f5 {[%clk 0:00:54]} 39. gxf5 {[%clk 0:00:16]}  exf5 {[%clk 0:00:55]} 40. Rh7 {[%clk 0:00:14]}  Kg8 {[%clk 0:00:47]} 41. Rxh6 {[%clk 0:00:14]}  Kg7 {[%clk 0:00:47]} 42. Rb6 {[%clk 0:00:12]}  Rc5 {[%clk 0:00:47]} 43. c3 {[%clk 0:00:06]}  Kf7 {[%clk 0:00:35]} 44. Rd2 {[%clk 0:00:06]}  Ke7 {[%clk 0:00:35]} 45. Rg6 {[%clk 0:00:06]}  f4 {[%clk 0:00:33]} 46. Re2 {[%clk 0:00:04]}  Re5 {[%clk 0:00:33]} 47. Rxg5 {[%clk 0:00:03]}  Rxg5 {[%clk 0:00:30]} 48. Rxe4+ {[%clk 0:00:03]}  Kd6 {[%clk 0:00:29]} 49. Rxf4 {[%clk 0:00:04]}  Rg3 {[%clk 0:00:23]} 50. h4 {[%clk 0:00:03]}  Rh3 {[%clk 0:00:24]} 51. Rg4 {[%clk 0:00:03]}  Kc6 {[%clk 0:00:23]} 52. Rg6+ {[%clk 0:00:03]}  Kc5 {[%clk 0:00:23]} 53. Rg5+ {[%clk 0:00:03]}  Kc6 {[%clk 0:00:23]} 54. h5 {[%clk 0:00:04]}  Kb6 {[%clk 0:00:23]} 55. Rg6+ {[%clk 0:00:04]}  Kc5 {[%clk 0:00:22]} 56. h6 {[%clk 0:00:03]}  Kd5 {[%clk 0:00:21]} 57. b4 {[%clk 0:00:02]}  Rh2+ {[%clk 0:00:15]} 58. Kb3 {[%clk 0:00:02]}  Rh3 {[%clk 0:00:16]} 59. Rb6 {[%clk 0:00:02]}  Ke4 {[%clk 0:00:12]} 60. Rxb5 {[%clk 0:00:03]}  Rxh6 {[%clk 0:00:10]} 61. Rc5 {[%clk 0:00:03]} 1-0


[Site "https://www.chess.com"]

[Event "Titled Tuesday Blitz October 31 Early 2023"]
[White "Omariev, Maksim"]
[Black "Ovetchkin, Roman"]
[WhiteFideId "4193423"]
[BlackFideId "4119991"]
[WhiteElo "2534"]
[BlackElo "2692"]
[Result "0-1"]
[Round "8"]
[TimeControl "180+1"]
[Date "2023.10.31"]
[WhiteClock "0:00:00"]
[BlackClock "0:00:07"]
[Board "54"]

1. g4 {[%clk 0:02:43]}  e5 {[%clk 0:02:59]} 2. Bg2 {[%clk 0:02:42]}  h5 {[%clk 0:02:59]} 3. gxh5 {[%clk 0:02:41]}  Qh4 {[%clk 0:02:58]} 4. d4 {[%clk 0:02:35]}  e4 {[%clk 0:02:47]} 5. Nc3 {[%clk 0:02:31]}  Nf6 {[%clk 0:02:44]} 6. Nh3 {[%clk 0:02:11]}  Rxh5 {[%clk 0:02:36]} 7. Nf4 {[%clk 0:01:59]}  Rf5 {[%clk 0:02:30]} 8. e3 {[%clk 0:01:45]}  d5 {[%clk 0:02:25]} 9. Qe2 {[%clk 0:01:04]}  Nc6 {[%clk 0:02:09]} 10. Nb5 {[%clk 0:00:58]}  Kd8 {[%clk 0:02:02]} 11. Bd2 {[%clk 0:00:57]}  a6 {[%clk 0:01:53]} 12. Nc3 {[%clk 0:00:56]}  Rxf4 {[%clk 0:01:51]} 13. exf4 {[%clk 0:00:54]}  Nxd4 {[%clk 0:01:51]} 14. Qd1 {[%clk 0:00:52]}  Ng4 {[%clk 0:01:31]} 15. Rf1 {[%clk 0:00:35]}  e3 {[%clk 0:01:25]} 16. Bc1 {[%clk 0:00:23]}  exf2+ {[%clk 0:01:07]} 17. Kd2 {[%clk 0:00:22]}  c6 {[%clk 0:01:02]} 18. Ne2 {[%clk 0:00:19]}  Nf5 {[%clk 0:00:53]} 19. Kc3 {[%clk 0:00:12]}  Nge3 {[%clk 0:00:46]} 20. Bxe3 {[%clk 0:00:11]}  Nxe3 {[%clk 0:00:45]} 21. Qd4 {[%clk 0:00:09]}  Nxf1 {[%clk 0:00:26]} 22. Rxf1 {[%clk 0:00:08]}  Qxh2 {[%clk 0:00:17]} 23. Rxf2 {[%clk 0:00:07]}  Qh6 {[%clk 0:00:16]} 24. Ng3 {[%clk 0:00:04]}  Qd6 {[%clk 0:00:14]} 25. a3 {[%clk 0:00:02]}  Qc5+ {[%clk 0:00:14]} 26. Qxc5 {[%clk 0:00:01]}  Bxc5 {[%clk 0:00:15]} 27. Re2 {[%clk 0:00:02]}  Bg4 {[%clk 0:00:11]} 28. Rd2 {[%clk 0:00:02]}  Kc7 {[%clk 0:00:09]} 29. b4 {[%clk 0:00:02]}  Be3 {[%clk 0:00:08]} 30. Kb3 {[%clk 0:00:03]}  Bxd2 {[%clk 0:00:07]} 31. f5 {[%clk 0:00:02]}  Bf4 {[%clk 0:00:07]} 32. Nh1 {[%clk 0:00:01]}  Be3 {[%clk 0:00:06]} 33. Ng3 {[%clk 0:00:01]}  Bf2 {[%clk 0:00:06]} 34. Nh1 {[%clk 0:00:00]}  Bh4 {[%clk 0:00:07]} 0-1


[Site "https://www.chess.com"]